[Event "16th Marseille Festival 2023"]
[Site "Marseille"]
[Date "2023.12.30"]
[Round "5.4"]
[White "Petrosyan, Armen"]
[Black "Delaplace, Mathias"]
[Result "1-0"]
[WhiteElo "2368"]
[BlackElo "1956"]
[PlyCount "71"]
[EventDate "2023.12.30"]
[EventType "swiss"]
[EventCountry "FRA"]
[TimeControl "5400+30"]

1. e4 {[%emt 0:04:29]} c5 {[%emt 0:00:04]} 2. Nf3 {[%emt 0:00:05]} e6 {[%emt 0:00:03]} 3. d4 {[%emt 0:00:06]} cxd4 {[%emt 0:00:04]} 4. Nxd4 {[%emt 0:00:03]} Nf6 {[%emt 0:00:05]} 5. Nc3 {[%emt 0:00:03]} Nc6 {[%emt 0:00:03]} 6. Nxc6 {[%emt 0:00:41]} bxc6 {[%emt 0:00:07]} 7. e5 {[%emt 0:00:04]} Nd5 {[%emt 0:00:02]} 8. Ne4 {[%emt 0:00:07]} Qc7 {[%emt 0:00:03]} 9. f4 {[%emt 0:00:08]} Rb8 {[%emt 0:00:03]} 10. c4 {[%emt 0:00:31]} Bb4+ {[%emt 0:00:04]} 11. Ke2 {[%emt 0:00:15]} O-O {[%emt 0:00:06]} 12. cxd5 {[%emt 0:00:05]} cxd5 {[%emt 0:00:07]} 13. Ng5 {[%emt 0:00:12]} d6 {[%emt 0:00:22]} 14. Qd3 {[%emt 0:07:09]} g6 {[%emt 0:02:37]} 15. Kd1 {[%emt 0:20:16]} dxe5 {[%emt 0:18:32]} 16. fxe5 {[%emt 0:00:08]} Qxe5 {[%emt 0:01:33]} 17. Nf3 {[%emt 0:00:15]} Qd6 {[%emt 0:01:18]} 18. Bh6 {[%emt 0:01:35]} Re8 {[%emt 0:01:09]} 19. a3 {[%emt 0:00:33]} Bc5 {[%emt 0:04:17]} 20. Rc1 {[%emt 0:03:05]} e5 {[%emt 0:19:53]} 21. Qc3 {[%emt 0:08:11]} Bb6 {[%emt 0:00:18]} 22. Bb5 {[%emt 0:00:44]} Bd7 {[%emt 0:11:37]} 23. Bxd7 {[%emt 0:08:58]} Qxd7 {[%emt 0:00:06]} 24. Nxe5 {[%emt 0:05:08]} Qf5 {[%emt 0:06:40]} 25. Nf3 {[%emt 0:09:54]} d4 {[%emt 0:00:45]} 26. Qc2 {[%emt 0:05:02]} Qb5 {[%emt 0:10:10]} 27. a4 {[%emt 0:12:21]} Qd7 {[%emt 0:01:53]} 28. Re1 {[%emt 0:03:36]} Ba5 {[%emt 0:10:17]} 29. Rxe8+ {[%emt 0:01:48]} Rxe8 {[%emt 0:02:02]} 30. Qc6 {[%emt 0:03:57]} Qe7 {[%emt 0:00:30]} 31. Kc2 {[%emt 0:00:06]} d3+ {[%emt 0:02:31]} 32. Kb1 {[%emt 0:00:05]} Qe2 {[%emt 0:06:05]} 33. Qf6 {[%emt 0:00:35]} Bc3 {[%emt 0:00:21]} 34. Qxc3 {[%emt 0:00:08]} f6 {[%emt 0:00:20]} 35. Re1 {[%emt 0:00:49]} d2 {[%emt 0:00:41]} 36. Bxd2 {[%emt 0:00:10]} 1-0

[Event "16th Marseille Festival 2023"]
[Site "Marseille"]
[Date "2023.12.30"]
[Round "5.5"]
[White "Adinolfi, Vincenzo"]
[Black "Philippe, Guillaume"]
[Result "0-1"]
[WhiteElo "1957"]
[BlackElo "2334"]
[PlyCount "64"]
[EventDate "2023.12.30"]
[EventType "swiss"]
[EventCountry "FRA"]
[TimeControl "5400+30"]

1. Nf3 {[%emt 0:00:02]} Nf6 {[%emt 0:00:07]} 2. g3 {[%emt 0:00:17]} b5 {[%emt 0:00:03]} 3. Bg2 {[%emt 0:00:21]} Bb7 {[%emt 0:00:06]} 4. O-O {[%emt 0:01:09]} e6 {[%emt 0:00:32]} 5. a4 {[%emt 0:02:51]} b4 {[%emt 0:00:07]} 6. c4 {[%emt 0:01:36]} c5 {[%emt 0:01:41]} 7. d4 {[%emt 0:04:59]} cxd4 {[%emt 1:31:24]} 8. Nxd4 {[%emt 0:00:46]} Bxg2 {[%emt 0:00:00]} 9. Kxg2 {[%emt 0:00:03]} Be7 {[%emt 0:00:00]} 10. Nd2 {[%emt 0:01:33]} O-O {[%emt 0:00:00]} 11. N2f3 {[%emt 0:06:47]} Na6 {[%emt 0:00:00]} 12. Ne5 {[%emt 0:04:30]} Qc7 {[%emt 0:00:00]} 13. f4 {[%emt 0:09:14]} Rac8 {[%emt 0:00:00]} 14. b3 {[%emt 0:00:28]} d6 {[%emt 0:00:00]} 15. Nd3 {[%emt 0:03:32]} d5 {[%emt 0:00:00]} 16. cxd5 {[%emt 0:00:37]} Nxd5 {[%emt 0:00:00]} 17. Bd2 {[%emt 0:01:04]} Qb7 {[%emt 0:00:00]} 18. Kg1 {[%emt 0:04:32]} Nc5 {[%emt 0:00:00]} 19. Nxc5 {[%emt 0:06:59]} Bxc5 {[%emt 0:00:00]} 20. e3 {[%emt 0:00:04]} Bxd4 {[%emt 0:00:00]} 21. exd4 {[%emt 0:00:08]} Qb6 {[%emt 0:00:00]} 22. Bc1 {[%emt 0:01:44]} Rfd8 {[%emt 0:00:00]} 23. Qd2 {[%emt 0:02:07]} Nc3 {[%emt 0:00:00]} 24. Bb2 {[%emt 0:00:07]} Rxd4 {[%emt 0:00:00]} 25. Qf2 {[%emt 0:00:05]} Qd8 {[%emt 0:00:00]} 26. Bxc3 {[%emt 0:01:10]} bxc3 {[%emt 0:00:00]} 27. Rac1 {[%emt 0:00:13]} g6 {[%emt 0:00:00]} 28. Qe3 {[%emt 0:03:28]} c2 {[%emt 0:00:00]} 29. Rf2 {[%emt 0:00:46]} Rd1+ {[%emt 0:00:00]} 30. Rf1 {[%emt 0:00:07]} Rxf1+ {[%emt 0:00:00]} 31. Kxf1 {[%emt 0:01:21]} Qd1+ {[%emt 0:00:00]} 32. Qe1 {[%emt 0:03:58]} Rd8 {[%emt 0:00:00]} 0-1

[Event "16th Marseille Festival 2023"]
[Site "Marseille"]
[Date "2023.12.30"]
[Round "5.6"]
[White "Fabre, Jean-charles"]
[Black "Pichon, Ewen"]
[Result "1/2-1/2"]
[WhiteElo "1883"]
[BlackElo "2274"]
[PlyCount "106"]
[EventDate "2023.12.30"]
[EventType "swiss"]
[EventCountry "FRA"]
[TimeControl "5400+30"]

1. c4 {[%emt 0:00:04]} Nf6 {[%emt 0:00:37]} 2. Nf3 {[%emt 0:00:16]} e6 {[%emt 0:00:04]} 3. Nc3 {[%emt 0:00:16]} d5 {[%emt 0:00:04]} 4. e3 {[%emt 0:00:17]} a6 {[%emt 0:00:48]} 5. b3 {[%emt 0:03:36]} Bd6 {[%emt 0:00:09]} 6. Bb2 {[%emt 0:01:44]} O-O {[%emt 0:01:17]} 7. d4 {[%emt 0:02:07]} dxc4 {[%emt 0:02:08]} 8. bxc4 {[%emt 0:01:55]} c5 {[%emt 0:00:16]} 9. Bd3 {[%emt 0:01:33]} cxd4 {[%emt 0:00:53]} 10. exd4 {[%emt 0:00:27]} b6 {[%emt 0:00:29]} 11. O-O {[%emt 0:01:10]} Bb7 {[%emt 0:00:25]} 12. Qe2 {[%emt 0:04:03]} Qc7 {[%emt 0:00:39]} 13. Ne4 {[%emt 0:06:29]} Nxe4 {[%emt 0:02:20]} 14. Bxe4 {[%emt 0:00:06]} Bxe4 {[%emt 0:00:39]} 15. Qxe4 {[%emt 0:00:06]} Nd7 {[%emt 0:00:05]} 16. Rac1 {[%emt 0:04:24]} Rac8 {[%emt 0:05:59]} 17. Rfe1 {[%emt 0:16:52]} Bf4 {[%emt 0:03:53]} 18. Rc2 {[%emt 0:00:18]} b5 {[%emt 0:02:32]} 19. g3 {[%emt 0:54:17]} Bh6 {[%emt 0:00:18]} 20. Bc1 {[%emt 0:00:00]} Bxc1 {[%emt 0:03:43]} 21. Rexc1 {[%emt 0:00:00]} bxc4 {[%emt 0:00:17]} 22. Rxc4 {[%emt 0:00:00]} Qxc4 {[%emt 0:01:06]} 23. Rxc4 {[%emt 0:00:00]} Rxc4 {[%emt 0:00:02]} 24. Qb7 {[%emt 0:00:00]} Nf6 {[%emt 0:00:25]} 25. Qxa6 {[%emt 0:00:00]} Rc1+ {[%emt 0:00:56]} 26. Kg2 {[%emt 0:00:00]} Rc2 {[%emt 0:00:49]} 27. Ne5 {[%emt 0:00:00]} Nd5 {[%emt 0:03:36]} 28. Qa4 {[%emt 0:00:00]} Rd2 {[%emt 0:01:30]} 29. Nd7 {[%emt 0:00:00]} Rc8 {[%emt 0:01:01]} 30. Qa6 {[%emt 0:00:00]} Re8 {[%emt 0:02:35]} 31. Ne5 {[%emt 0:00:00]} Ne3+ {[%emt 0:01:58]} 32. Kf3 {[%emt 0:00:00]} Nf5 {[%emt 0:00:45]} 33. Qa7 {[%emt 0:00:00]} Nxd4+ {[%emt 0:01:47]} 34. Kg2 {[%emt 0:01:42]} Rf8 {[%emt 0:00:30]} 35. Nd7 {[%emt 0:02:00]} Nc6 {[%emt 0:02:30]} 36. Qc7 {[%emt 0:01:13]} Rd8 {[%emt 0:00:08]} 37. Nc5 {[%emt 0:01:19]} Nb8 {[%emt 0:02:16]} 38. a4 {[%emt 0:00:52]} e5 {[%emt 0:00:22]} 39. a5 {[%emt 0:00:44]} e4 {[%emt 0:00:42]} 40. Nxe4 {[%emt 0:00:09]} R2d7 {[%emt 0:00:18]} 41. Qb6 {[%emt 0:00:22]} Rc8 {[%emt 0:01:51]} 42. a6 {[%emt 0:00:34]} Nc6 {[%emt 0:00:06]} 43. Nc5 {[%emt 0:00:41]} Ra7 {[%emt 0:00:05]} 44. Nb7 {[%emt 0:01:15]} Raa8 {[%emt 0:02:25]} 45. h4 {[%emt 0:00:58]} Nd8 {[%emt 0:04:10]} 46. Nc5 {[%emt 0:00:59]} h5 {[%emt 0:04:44]} 47. Qb5 {[%emt 0:00:14]} Nc6 {[%emt 0:00:25]} 48. Nb7 {[%emt 0:00:18]} Nd4 {[%emt 0:02:14]} 49. Qd7 {[%emt 0:00:17]} Ne6 {[%emt 0:00:21]} 50. Nd6 {[%emt 0:00:27]} Rc7 {[%emt 0:00:31]} 51. Qb5 {[%emt 0:00:37]} Nc5 {[%emt 0:03:41]} 52. Ne8 {[%emt 0:00:56]} Rcc8 {[%emt 0:00:06]} 53. Nd6 {[%emt 0:00:12]} Rc7 {[%emt 0:00:01]} 1/2-1/2

[Event "16th Marseille Festival 2023"]
[Site "Marseille"]
[Date "2023.12.30"]
[Round "5.7"]
[White "Baroyan, Davit"]
[Black "Thomas, Richard Huw"]
[Result "1-0"]
[WhiteElo "2203"]
[BlackElo "2162"]
[PlyCount "116"]
[EventDate "2023.12.30"]
[EventType "swiss"]
[EventCountry "FRA"]
[TimeControl "5400+30"]

1. Nf3 {[%emt 0:00:08]} d5 {[%emt 0:00:20]} 2. g3 {[%emt 0:00:07]} Nf6 {[%emt 0:00:07]} 3. Bg2 {[%emt 0:00:05]} c6 {[%emt 0:00:29]} 4. O-O {[%emt 0:00:12]} Bf5 {[%emt 0:00:07]} 5. c4 {[%emt 0:00:03]} e6 {[%emt 0:00:11]} 6. d3 {[%emt 0:00:09]} Be7 {[%emt 0:02:48]} 7. cxd5 {[%emt 0:01:32]} exd5 {[%emt 0:01:42]} 8. Nc3 {[%emt 0:00:08]} O-O {[%emt 0:00:45]} 9. Qb3 {[%emt 0:00:10]} Qb6 {[%emt 0:05:15]} 10. Qc2 {[%emt 0:00:05]} Nbd7 {[%emt 0:01:45]} 11. e4 {[%emt 0:00:17]} dxe4 {[%emt 0:08:33]} 12. dxe4 {[%emt 0:00:07]} Bg6 {[%emt 0:03:36]} 13. Be3 {[%emt 0:00:17]} Qa5 {[%emt 0:03:56]} 14. a3 {[%emt 0:09:34]} Rfe8 {[%emt 0:05:38]} 15. b4 {[%emt 0:05:06]} Qh5 {[%emt 0:00:40]} 16. h3 {[%emt 0:01:19]} Ne5 {[%emt 0:17:30]} 17. Nh2 {[%emt 0:11:40]} Nc4 {[%emt 0:11:08]} 18. Bf4 {[%emt 0:02:29]} Nd5 {[%emt 0:05:28]} 19. Bf3 {[%emt 0:05:47]} Qxh3 {[%emt 0:01:47]} 20. Bg4 {[%emt 0:00:12]} Nxf4 {[%emt 0:00:14]} 21. Bxh3 {[%emt 0:00:10]} Nxh3+ {[%emt 0:00:06]} 22. Kg2 {[%emt 0:00:13]} Ng5 {[%emt 0:00:22]} 23. Qe2 {[%emt 0:30:58]} Nd6 {[%emt 0:05:10]} 24. e5 {[%emt 0:01:33]} Nde4 {[%emt 0:02:16]} 25. Na2 {[%emt 0:05:12]} Ne6 {[%emt 0:04:14]} 26. Rad1 {[%emt 0:03:42]} Rad8 {[%emt 0:02:54]} 27. Rxd8 {[%emt 0:02:14]} Bxd8 {[%emt 0:01:01]} 28. f3 {[%emt 0:06:21]} N4g5 {[%emt 0:00:18]} 29. Nc3 {[%emt 0:04:19]} Bf5 {[%emt 0:04:44]} 30. Ng4 {[%emt 0:01:49]} Nd4 {[%emt 0:00:45]} 31. Qc4 {[%emt 0:06:06]} Bb6 {[%emt 0:01:35]} 32. Na4 {[%emt 0:00:39]} Be6 {[%emt 0:00:42]} 33. Qd3 {[%emt 0:01:01]} Ndxf3 {[%emt 0:04:15]} 34. Rxf3 {[%emt 0:01:39]} Bxg4 {[%emt 0:00:21]} 35. Rf4 {[%emt 0:00:08]} Bh3+ {[%emt 0:00:54]} 36. Kh2 {[%emt 0:00:01]} Rd8 {[%emt 0:01:00]} 37. Qe2 {[%emt 0:01:01]} Bc7 {[%emt 0:01:22]} 38. Nc5 {[%emt 0:01:16]} Re8 {[%emt 0:01:09]} 39. Nd3 {[%emt 0:01:02]} h6 {[%emt 0:01:05]} 40. g4 {[%emt 0:00:25]} f6 {[%emt 0:00:34]} 41. Rf5 {[%emt 0:00:25]} Bxe5+ {[%emt 0:02:56]} 42. Nxe5 {[%emt 0:00:04]} Rxe5 {[%emt 0:00:08]} 43. Qc4+ {[%emt 0:00:29]} Kh8 {[%emt 0:00:25]} 44. Rxg5 {[%emt 0:00:10]} hxg5 {[%emt 0:00:32]} 45. Kxh3 {[%emt 0:02:36]} Re3+ {[%emt 0:00:27]} 46. Kg2 {[%emt 0:00:00]} Rxa3 {[%emt 0:00:12]} 47. Qf7 {[%emt 0:00:00]} b6 {[%emt 0:01:46]} 48. Qe8+ {[%emt 0:00:00]} Kh7 {[%emt 0:00:05]} 49. Qxc6 {[%emt 0:00:00]} Kg6 {[%emt 0:01:01]} 50. Qc1 {[%emt 0:00:00]} Ra2+ {[%emt 0:00:15]} 51. Kf3 {[%emt 0:00:00]} Ra6 {[%emt 0:00:54]} 52. Qc2+ {[%emt 0:00:55]} f5 {[%emt 0:00:29]} 53. gxf5+ {[%emt 0:01:00]} Kf6 {[%emt 0:00:22]} 54. Qc3+ {[%emt 0:00:25]} Ke7 {[%emt 0:00:19]} 55. Qc7+ {[%emt 0:00:22]} Kf6 {[%emt 0:00:15]} 56. Qc3+ {[%emt 0:01:08]} Ke7 {[%emt 0:00:09]} 57. Qxg7+ {[%emt 0:00:03]} Kd6 {[%emt 0:00:09]} 58. f6 {[%emt 0:00:11]} Kd5 {[%emt 0:02:20] Ke4+} 1-0

[Event "16th Marseille Festival 2023"]
[Site "Marseille"]
[Date "2023.12.30"]
[Round "5.8"]
[White "De Carvalho Massabo, Raphael"]
[Black "Gachbar, Imrane"]
[Result "1-0"]
[WhiteElo "2137"]
[BlackElo "1885"]
[PlyCount "77"]
[EventDate "2023.12.30"]
[EventType "swiss"]
[EventCountry "FRA"]
[TimeControl "5400+30"]

1. e4 {[%emt 0:00:08]} c5 {[%emt 0:00:13]} 2. Nf3 {[%emt 0:00:05]} e6 {[%emt 0:00:07]} 3. d4 {[%emt 0:00:07]} cxd4 {[%emt 0:00:26]} 4. Nxd4 {[%emt 0:00:01]} a6 {[%emt 0:01:36]} 5. c4 {[%emt 0:00:34]} Nf6 {[%emt 0:00:48]} 6. Nc3 {[%emt 0:00:07]} Qc7 {[%emt 0:01:05]} 7. a3 {[%emt 0:00:11]} Be7 {[%emt 0:00:13]} 8. Be3 {[%emt 0:03:00]} b6 {[%emt 0:01:17]} 9. Rc1 {[%emt 0:02:14]} Bb7 {[%emt 0:02:57]} 10. f3 {[%emt 0:00:10]} d6 {[%emt 0:01:32]} 11. g4 {[%emt 0:02:17]} h6 {[%emt 0:02:47]} 12. Kd2 {[%emt 0:04:56]} Nbd7 {[%emt 0:01:53]} 13. Kc2 {[%emt 0:00:12]} O-O-O {[%emt 0:04:08]} 14. Kb1 {[%emt 0:02:37]} Kb8 {[%emt 0:00:23]} 15. Be2 {[%emt 0:03:47]} Ka8 {[%emt 0:03:06]} 16. h4 {[%emt 0:02:06]} g6 {[%emt 0:03:43]} 17. g5 {[%emt 0:12:48]} hxg5 {[%emt 0:05:39]} 18. hxg5 {[%emt 0:00:26]} Nh5 {[%emt 1:07:37]} 19. Qg1 {[%emt 0:01:04]} Qb8 {[%emt 0:00:00]} 20. Nc2 {[%emt 0:03:18]} Qc7 {[%emt 0:00:00]} 21. Nb4 {[%emt 0:13:32]} Rc8 {[%emt 0:00:00]} 22. Qf2 {[%emt 0:08:23]} Qd8 {[%emt 0:00:00]} 23. f4 {[%emt 0:03:42]} Nc5 {[%emt 0:00:00]} 24. Bxc5 {[%emt 0:03:55]} bxc5 {[%emt 0:00:00]} 25. Nd3 {[%emt 0:00:23]} Ng7 {[%emt 0:00:00]} 26. Bf3 {[%emt 0:03:36]} Qb6 {[%emt 0:00:00]} 27. Qc2 {[%emt 0:06:20]} Bc6 {[%emt 0:00:00]} 28. Rh6 Rxh6 {[%emt 0:00:00]} 29. gxh6 {[%emt 0:05:54]} Ne8 {[%emt 0:00:00]} 30. Qe2 {[%emt 0:06:57]} Qb7 {[%emt 0:00:00]} 31. Ne1 {[%emt 0:02:13]} Bf8 {[%emt 0:00:00]} 32. h7 {[%emt 0:01:39]} Bg7 {[%emt 0:00:00]} 33. e5 {[%emt 0:00:23]} dxe5 {[%emt 0:00:00]} 34. fxe5 {[%emt 0:00:01]} Nc7 {[%emt 0:00:00]} 35. Ne4 {[%emt 0:00:51]} Qb6 {[%emt 0:00:00]} 36. Nd6 {[%emt 0:00:46]} Rf8 {[%emt 0:00:00]} 37. Qg2 {[%emt 0:01:21]} Bxf3 {[%emt 0:00:00]} 38. Qxf3+ {[%emt 0:00:34]} Ka7 {[%emt 0:00:00]} 39. Nd3 {[%emt 0:09:22]} 1-0

[Event "16th Marseille Festival 2023"]
[Site "Marseille"]
[Date "2023.12.30"]
[Round "6.1"]
[White "Bilych, Olexiy"]
[Black "Gusain, Himal"]
[Result "0-1"]
[WhiteElo "2433"]
[BlackElo "2457"]
[PlyCount "66"]
[EventDate "2023.12.30"]
[EventType "swiss"]
[EventCountry "FRA"]
[TimeControl "5400+30"]

1. d4 {[%emt 1:31:00]} d5 {[%emt 0:13:07]} 2. c4 {[%emt 0:00:00]} e6 {[%emt 0:00:06]} 3. Nc3 {[%emt 0:00:00]} c6 {[%emt 0:00:08]} 4. Nf3 {[%emt 0:00:00]} dxc4 {[%emt 0:00:06]} 5. e3 {[%emt 0:00:00]} b5 {[%emt 0:00:05]} 6. a4 {[%emt 0:00:00]} Bb4 {[%emt 0:00:05]} 7. Bd2 {[%emt 0:00:00]} a5 {[%emt 0:00:05]} 8. axb5 {[%emt 0:00:00]} Bxc3 {[%emt 0:00:04]} 9. Bxc3 {[%emt 0:00:00]} cxb5 {[%emt 0:00:07]} 10. b3 {[%emt 0:00:00]} Bb7 {[%emt 0:00:04]} 11. bxc4 {[%emt 0:00:00]} b4 {[%emt 0:00:05]} 12. Bb2 {[%emt 0:00:00]} Nf6 {[%emt 0:00:05]} 13. Bd3 {[%emt 0:00:00]} O-O {[%emt 0:00:04]} 14. O-O {[%emt 0:00:00]} Ne4 {[%emt 0:01:03]} 15. Nd2 {[%emt 0:00:00]} f5 {[%emt 0:01:42]} 16. f3 {[%emt 0:00:00]} Nxd2 {[%emt 0:10:24]} 17. Qxd2 {[%emt 0:00:00]} Qe7 {[%emt 0:07:05]} 18. Bc2 {[%emt 0:00:00]} Nd7 {[%emt 0:09:57]} 19. d5 {[%emt 0:00:00]} Qd6 {[%emt 0:07:25]} 20. e4 {[%emt 0:00:00]} fxe4 {[%emt 0:01:15]} 21. fxe4 {[%emt 0:00:00]} e5 {[%emt 0:05:10]} 22. Rxf8+ {[%emt 0:00:00]} Rxf8 {[%emt 0:00:12]} 23. Qe3 {[%emt 0:00:00]} Ba6 {[%emt 0:05:34]} 24. Rxa5 {[%emt 0:00:00]} Bxc4 {[%emt 0:00:12]} 25. h3 {[%emt 0:00:00]} Qg6 {[%emt 0:07:10]} 26. Ra7 {[%emt 0:00:00]} Bf1 {[%emt 0:03:31]} 27. g3 {[%emt 0:00:00]} Bxh3 {[%emt 0:01:56]} 28. Bd3 {[%emt 0:00:00]} Bg4 {[%emt 0:12:59]} 29. Bb5 {[%emt 0:00:00]} Bf3 {[%emt 0:08:25]} 30. Kf2 {[%emt 0:00:00]} Bxe4+ {[%emt 0:00:18]} 31. Ke1 {[%emt 0:00:00]} Rf3 {[%emt 0:02:18]} 32. Qg1 {[%emt 0:00:00]} Bd3 {[%emt 0:01:56]} 33. Ra8+ {[%emt 0:00:00]} Nf8 {[%emt 0:00:55]} 0-1

[Event "16th Marseille Festival 2023"]
[Site "Marseille"]
[Date "2023.12.30"]
[Round "6.2"]
[White "Philippe, Guillaume"]
[Black "Lamard, Guillaume"]
[Result "1/2-1/2"]
[WhiteElo "2334"]
[BlackElo "2497"]
[PlyCount "120"]
[EventDate "2023.12.30"]
[EventType "swiss"]
[EventCountry "FRA"]
[TimeControl "5400+30"]

1. e4 {[%emt 0:00:04]} c6 {[%emt 0:00:03]} 2. d3 {[%emt 0:00:24]} d5 {[%emt 0:01:40]} 3. Nd2 {[%emt 0:00:04]} g6 {[%emt 0:07:32]} 4. g3 {[%emt 0:01:32]} Bg7 {[%emt 0:00:24]} 5. Bg2 {[%emt 0:00:07]} e5 {[%emt 0:00:52]} 6. Ngf3 {[%emt 0:00:45]} Ne7 {[%emt 0:00:16]} 7. O-O {[%emt 0:00:21]} O-O {[%emt 0:00:05]} 8. b3 {[%emt 0:02:54]} Qc7 {[%emt 0:04:08]} 9. Bb2 {[%emt 0:01:22]} d4 {[%emt 0:02:43]} 10. c3 {[%emt 0:00:53]} c5 {[%emt 0:06:02]} 11. cxd4 {[%emt 0:08:34]} cxd4 {[%emt 0:00:03]} 12. a4 {[%emt 0:00:38]} Nbc6 {[%emt 0:04:05]} 13. Ba3 {[%emt 0:03:44]} f6 {[%emt 0:09:15]} 14. b4 {[%emt 0:00:42]} Be6 {[%emt 0:01:39]} 15. Qc2 {[%emt 0:06:59]} Qd7 {[%emt 0:01:37]} 16. Rfc1 {[%emt 0:01:06]} Rfc8 {[%emt 0:00:06]} 17. Qb2 {[%emt 0:00:10]} Nd8 {[%emt 0:02:38]} 18. b5 {[%emt 0:00:49]} Nf7 {[%emt 0:02:23]} 19. Bf1 {[%emt 0:00:47]} Bh6 {[%emt 0:05:13]} 20. Be2 {[%emt 0:00:34]} g5 {[%emt 0:07:16]} 21. Bd1 {[%emt 0:03:26]} Ng6 {[%emt 0:05:20]} 22. Rxc8+ {[%emt 0:03:02]} Rxc8 {[%emt 0:00:04]} 23. Rc1 {[%emt 0:00:26]} Rxc1 {[%emt 0:03:13]} 24. Qxc1 {[%emt 0:00:06]} g4 {[%emt 0:00:15]} 25. Ne1 {[%emt 0:00:07]} Qd8 {[%emt 0:08:54]} 26. Bb4 {[%emt 0:03:20]} a5 {[%emt 0:06:14]} 27. bxa6 {[%emt 0:04:14]} bxa6 {[%emt 0:00:08]} 28. Qc6 {[%emt 0:02:04]} Qc8 {[%emt 0:01:30]} 29. Qxc8+ {[%emt 0:00:52]} Bxc8 {[%emt 0:00:04]} 30. Bb3 {[%emt 0:00:11]} Nf8 {[%emt 0:03:41]} 31. Bc4 {[%emt 0:03:21]} Nd7 {[%emt 0:01:36]} 32. a5 {[%emt 0:02:19]} Nb8 {[%emt 0:02:31]} 33. Nb3 {[%emt 0:01:13]} Nc6 {[%emt 0:00:24]} 34. Nc2 {[%emt 0:00:06]} Bf8 {[%emt 0:01:15]} 35. Bd2 {[%emt 0:03:09]} Kg7 {[%emt 0:00:39]} 36. Bd5 {[%emt 0:01:05]} Nfd8 {[%emt 0:01:07]} 37. Kg2 {[%emt 0:01:02]} Be6 {[%emt 0:01:35]} 38. Bxe6 {[%emt 0:00:26]} Nxe6 {[%emt 0:00:05]} 39. h3 {[%emt 0:01:21]} h5 {[%emt 0:00:15]} 40. f3 {[%emt 0:00:14]} gxf3+ {[%emt 0:01:23]} 41. Kxf3 {[%emt 0:00:06]} Kg6 {[%emt 0:00:02]} 42. h4 {[%emt 0:03:14]} f5 {[%emt 0:04:58]} 43. Be1 {[%emt 0:02:31]} f4 {[%emt 0:03:43]} 44. Bd2 {[%emt 0:00:20]} fxg3 {[%emt 0:00:13]} 45. Kxg3 {[%emt 0:00:05]} Nc5 {[%emt 0:00:30]} 46. Nxc5 {[%emt 0:02:20]} Bxc5 {[%emt 0:00:03]} 47. Be1 {[%emt 0:02:45]} Be7 {[%emt 0:00:26]} 48. Kf3 {[%emt 0:01:21]} Kf7 {[%emt 0:01:18]} 49. Na1 {[%emt 0:01:20]} Ke6 {[%emt 0:01:39]} 50. Nb3 {[%emt 0:00:05]} Nb4 {[%emt 0:02:54]} 51. Ke2 {[%emt 0:37:20]} Nc2 {[%emt 0:00:11]} 52. Bf2 {[%emt 0:00:00]} Bb4 {[%emt 0:01:12]} 53. Kd1 {[%emt 0:00:00]} Ne3+ {[%emt 0:00:27]} 54. Bxe3 {[%emt 0:00:00]} dxe3 {[%emt 0:00:08]} 55. Ke2 {[%emt 0:00:00]} Kd6 {[%emt 0:00:41]} 56. Kxe3 {[%emt 0:00:00]} Be1 {[%emt 0:00:03]} 57. d4 {[%emt 0:00:00]} exd4+ {[%emt 0:00:31]} 58. Nxd4 {[%emt 0:00:00]} Bxa5 {[%emt 0:00:04]} 59. Nf5+ {[%emt 0:00:00]} Ke5 {[%emt 0:00:39]} 60. Ng7 {[%emt 0:00:00]} Bd8 {[%emt 0:00:31]} 1/2-1/2